Cogmind - Beta 16 @@@ ROGUE MODE // 2026.01.14 @ 18:38:39 Player: KingCain Result: Destroyed by Y-45 Defender with Heavy Assault Rifle Performance ------------- Evolutions (1) 500 Regions Visited (2) 400 Robots Destroyed (22) 110 Value Destroyed (572) 572 Prototype IDs (0) 0 Alien Tech Used (0) 0 Bonus (0) 0 TOTAL SCORE: 1582 Bonus ------- None Cogmind --------- Core Integrity 0/400 Matter 288/300 Energy 100/100 System Corruption 0% Temperature Cool (0) Movement Core (50) Location -9/Materials Parts ------- > --- POWER (1) -------- (None) > --- PROPULSION (3) --- (None) > --- UTILITY (2) ------ (None) > --- WEAPON (3) ------- (None) > --- INVENTORY (5) ---- Targeting Computer Peak State ------------ > --- POWER ------------ Ion Engine > --- PROPULSION ------- Aluminum Leg Aluminum Leg Compact Wheel > --- UTILITY ---------- Medium Armor Plating Medium Armor Plating > --- WEAPON ----------- Improved Light Cannon Improved Light Cannon > --- INVENTORY -------- Targeting Computer [Rating: 12] Favorites ----------- Power Ion Engine Engine Ion Engine Propulsion Compact Wheel Leg Aluminum Leg Wheel Compact Wheel Utility Medium Armor Plating Device Improved Terrain Scanner Storage Small Storage Unit Protection Medium Armor Plating Weapon Improved Light Cannon Energy Gun Small Laser Ballistic Gun Light Assault Rifle Ballistic Cannon Improved Light Cannon Launcher Rocket Launcher Special Weapon Mining Laser Build | -11 -10 -9 ------- Run | Yrd Mat Mat Slots Evolved 2 | . . 2 Power . | . . . Propulsion 1 | . . 1 Utility . | . . . Weapon 1 | . . 1 Parts Attached 17 | 9 4 4 Power 2 | 2 . . Engine 2 | 2 . . Core . | . . . Reactor . | . . . Propulsion 5 | 2 . 3 Treads . | . . . Leg 3 | . . 3 Wheel 2 | 2 . . Hover . | . . . Flight . | . . . Utility 4 | 2 2 . Device 1 | 1 . . Storage 1 | 1 . . Processor . | . . . Hackware . | . . . Protection 2 | . 2 . Artifact . | . . . Weapon 6 | 3 2 1 Energy Gun 1 | 1 . . Energy Cannon . | . . . Ballistic Gun 1 | 1 . . Ballistic Cannon 2 | . 2 . Launcher 1 | . . 1 Special Weapon 1 | 1 . . Impact Weapon . | . . . Slashing Weapon . | . . . Piercing Weapon . | . . . Special Melee Weapon . | . . . Unidentified Prototypes . | . . . Parts Lost 11 | . 2 9 Power 1 | . . 1 Propulsion 4 | . 1 3 Utility 2 | . . 2 Weapon 4 | . 1 3 Highest Loss Streak 9 | . 1 9 To Critical Strikes 1 | . 1 . Average Backups . | . . 1 Power . | . . . Propulsion . | . . . Utility . | . . 1 Weapon . | . . . Tool/Special . | . . . Unused Backups 1 | . . 1 Power . | . . . Propulsion . | . . . Utility 1 | . . 1 Weapon . | . . . Tool/Special . | . . . Average Slot Usage (%) 83 | . 91 69 Engine 12 | . 14 10 Leg 4 | . . 13 Wheel 16 | . 21 7 Device 4 | . 6 . Storage 4 | . 6 . Protection 16 | . 14 19 Ballistic Gun 4 | . 6 . Ballistic Cannon 16 | . 15 19 Special Weapon 3 | . 5 . Peak Build Rating 12 | 9 11 12 Average Rating 9 | 7 9 9 On Entrance 6 | . 9 10 Avg Prop Armor Cover (%) 1 | . . 1 Naked Turns 6 | . . 6 Heaviest Build 27 | 13 27 27 Greatest Support 30 | 26 26 30 Greatest Overweight (x) 2 | . 1 2 Average Overweight (x) . | . . . Largest Inventory Capacity 8 | 8 8 5 Average Capacity 6 | 7 6 5 Most Carried 1 | . 1 1 Average Carried . | . . 1 Final Capacity 8 | 8 5 5 Final Carried 1 | . 1 1 Class Distribution -------------------- 100% | Mutant Dominant Class ---------------- Mutant | -10/Materials Mutant | -9/Materials Resources | -11 -10 -9 ----------- Run | Yrd Mat Mat Matter Collected 614 | 284 186 144 Remotely . | . . . Salvage Created 649 | 19 204 426 Parts 26 | 3 8 15 Haulers Intercepted . | . . . Recyclers Shooed 2 | . 1 1 Parts Field Recycled . | . . . Retrieved Matter . | . . . Parts Self-Destructed . | . . . Prevented . | . . . Parts Restored . | . . . Kills | -11 -10 -9 ------- Run | Yrd Mat Mat Combat Hostiles Destroyed 17 | . 5 12 Cannons 11 | . 5 6 AOE 6 | . . 6 Classes Destroyed 7 | 1 4 2 Tunneler 1 | 1 . . Recycler 3 | . 1 2 Watcher 1 | . 1 . Swarmer 5 | . 2 3 Grunt 10 | . 3 7 Brawler 1 | . . 1 Sentry 1 | . . 1 Best Kill Streak 7 | 1 5 7 Combat Bots Only 6 | . 4 6 Max Kills in Single Turn 6 | 1 1 6 Gunslinging . | . . . Exploded 5 | . . 5 Melee . | . . . Uniques/NPCs Destroyed . | . . . Combat | -11 -10 -9 -------- Run | Yrd Mat Mat Hostile Shots Fired 168 | . 45 123 Missed 53 | . 13 40 Hits 115 | . 32 83 Projectile 115 | . 32 83 Critical Strikes 3 | . 2 1 Damage Taken 1583 | . 381 1202 Core 547 | . 131 416 Absorbed by Shields . | . . . Core Remaining (%) 73 | 100 47 . Volleys Fired 53 | 1 33 19 Largest 2 | 1 2 2 Hottest 100 | 20 100 66 Shots Fired 87 | 1 50 36 Gun 12 | 1 11 . Cannon 68 | . 34 34 Launcher 2 | . . 2 Special 5 | . 5 . Kinetic 80 | 1 45 34 Thermal 5 | . 5 . Explosive 2 | . . 2 Electromagnetic . | . . . Robot Hit Streak 6 | 1 3 6 Robot Miss Streak 3 | . 3 3 Penetration Max . | . . . Secondary Targets . | . . . Shots Hit Robots 38 | 1 16 21 Core Hits 25 | 1 7 17 Critical Kills . | . . . Critical Parts Destroyed . | . . . Critical Strikes 4 | . 1 3 Blast 4 | . 1 3 Melee Attacks . | . . . Impact . | . . . Slashing . | . . . Piercing . | . . . Sneak Attacks . | . . . Combat Hostiles . | . . . Follow-up Attacks . | . . . Damage Inflicted 1650 | 10 362 1278 Guns 24 | 10 14 . Cannons 755 | . 345 410 Explosions 850 | . . 850 Melee . | . . . Ramming 21 | . 3 18 Kinetic 779 | 10 359 410 Thermal 146 | . . 146 Explosive 704 | . . 704 Electromagnetic . | . . . Impact . | . . . Slashing . | . . . Piercing . | . . . Highest Corruption . | . . . Average Corruption . | . . . Corruption Purged . | . . . Corruption Blocked . | . . . Overload Shots . | . . . Overflow Damage 173 | . 3 170 Projectiles 14 | . 3 11 Explosions 159 | . . 159 Melee . | . . . Knockbacks 11 | . 4 7 Impact . | . . . Kinetic 11 | . 4 7 Secondary . | . . . Self-Inflicted Damage 324 | . 1 323 Shots 6 | . . 6 Rammed 1 | . 1 . Targets Rammed 5 | . 1 4 Kicked 4 | . . 4 Crushed . | . . . Highest Temperature 342 | . 342 153 Average Temperature 97 | . 122 55 Received Heat Transfer 483 | . 174 309 Siege Activations . | . . . Martial Activations . | . . . Shielding Activations . | . . . Robots Disrupted . | . . . Combat Hostiles . | . . . Robots Corrupted . | . . . Combat Hostiles . | . . . Parts Fried . | . . . Impact Corruptions . | . . . Robots Melted . | . . . Combat Hostiles . | . . . Parts Melted . | . . . Heat Transferred 100 | . . 100 Parts Sabotaged . | . . . Parts Stolen . | . . . Parts Stripped . | . . . Power Chain Reactions . | . . . Alert | -11 -10 -9 ------- Run | Yrd Mat Mat Maximum Alert Level 1 | . . 1 Low Security (%) 99 | 100 100 97 Level 1 . | . . 2 Level 2 . | . . . Level 3 . | . . . Level 4 . | . . . Level 5 . | . . . High Security . | . . . Max Security . | . . . Peak Influence 284 | 5 113 284 Initial 13 | . . 13 Average 39 | . 40 75 Influence Increases 649 | 5 190 454 Destroy 0b10 Robot/C 340 | . 100 240 Destroy 0b10 Robot/NC 25 | 5 10 10 Destroy Leader 82 | . 32 50 Disable Machine 90 | . . 90 Destroy Structure 67 | . 3 64 Lose Combat Pursuer 45 | . 45 . Influence Decreases 375 | 5 158 212 Entered New Map 19 | . . 19 Time Decay 254 | 5 146 103 Lost Part 102 | . 12 90 Squads Dispatched 4 | . 2 2 Investigation 2 | . 1 1 Extermination . | . . . Reinforcement 2 | . 1 1 Assault . | . . . Garrison . | . . . Intercept . | . . . Searches Triggered . | . . . Construction Impeded . | . . . Haulers Reinforced . | . . . Active Scanning Responses . | . . . Cargo Convoy Interrupts . | . . . Stealth | -11 -10 -9 --------- Run | Yrd Mat Mat Distress Signals 3 | . 1 2 Communications Jammed . | . . . Distress Signals . | . . . Times Spotted 33 | . 13 20 Peak Tracking Total 10 | . 4 10 Tactical Retreats 2 | . 2 . Traps | -11 -10 -9 ------- Run | Yrd Mat Mat Traps Triggered 1 | . 1 . Indirectly . | . . . Trap Hack Attempts . | . . . Triggered . | . . . Disarmed . | . . . Reprogrammed . | . . . Reused . | . . . Traps Extracted . | . . . Installed . | . . . Triggered . | . . . Machines | -11 -10 -9 ---------- Run | Yrd Mat Mat Machines Disabled 6 | . . 6 Max in Single Turn 5 | . . 5 Machines Repaired . | . . . Machines Dismantled . | . . . Machines Sabotaged . | . . . Overloaded Fab Kills . | . . . Hacking | -11 -10 -9 --------- Run | Yrd Mat Mat Machines Accessed 1 | . . 1 Terminals 1 | . . 1 Fabricators . | . . . Repair Stations . | . . . Recycling Units . | . . . Scanalyzers . | . . . Garrison Access . | . . . Total Hacks 5 | . . 5 Successful 1 | . . 1 Failed 4 | . . 4 Catastrophic . | . . . Database Lockouts . | . . . Manual . | . . . Terminals 5 | . . 5 Fabricators . | . . . Repair Stations . | . . . Recycling Units . | . . . Scanalyzers . | . . . Garrison Access . | . . . Terminal Hacks 1 | . . 1 Zone Layout 1 | . . 1 Fabricator Hacks . | . . . Repair Station Hacks . | . . . Recycling Unit Hacks . | . . . Scanalyzer . | . . . Garrison Access Hacks . | . . . Unauthorized Hacks . | . . . Terminals . | . . . Fabricators . | . . . Repair Stations . | . . . Recycling Units . | . . . Scanalyzers . | . . . Garrison Access . | . . . Data Cores Recovered . | . . . Used . | . . . Hacking Detections 1 | . . 1 Full Trace Events 1 | . . 1 Feedback Events . | . . . Feedback Blocked . | . . . Robot Schematics Acquired . | . . . Robots Built . | . . . Authchips . | . . . Time . | . . . Total Robot Build Rating . | . . . Part Schematics Acquired . | . . . Parts Built . | . . . Authchips . | . . . Time . | . . . Total Part Build Rating . | . . . Part Studies Acquired . | . . . Parts Repaired . | . . . Time . | . . . Parts Recycled . | . . . Recycled Matter . | . . . Retrieved Matter . | . . . Retrieved Components . | . . . Parts Scanalyzed . | . . . Part Schematics Acquired . | . . . Parts Damaged . | . . . Bothacking | -11 -10 -9 ------------ Run | Yrd Mat Mat Used RIF Installer . | . . . Robots Hacked . | . . . Non-combat . | . . . Combat . | . . . Robot Hacks Applied . | . . . Relay Couplers Released . | . . . Fabnet Peak Effective % . | . . . Robots Rewired . | . . . Allies Hacked . | . . . Hacks Repelled . | . . . Allies | -11 -10 -9 -------- Run | Yrd Mat Mat Total Allies . | . . . Largest Group . | . . . Highest-Rated Group . | . . . Highest-Rated Ally . | . . . Total Orders . | . . . Ally Attacks . | . . . Total Damage . | . . . Kills . | . . . Allies Corrupted . | . . . Allies Melted . | . . . Intel | -11 -10 -9 ------- Run | Yrd Mat Mat Active Infowar (turns) 360 | 159 201 . Terrain 360 | 159 201 . Robot Analysis Total . | . . . Derelict Logs Recovered . | . . . Drone Launches . | . . . Drone Recoveries . | . . . Exploration | -11 -10 -9 ------------- Run | Yrd Mat Mat Turns Passed 873 | 218 435 220 Spaces Moved 507 | 59 324 124 Core 16 | 4 . 12 Treads . | . . . Legs 59 | . . 59 Wheels 432 | 55 324 53 Hover . | . . . Flight . | . . . Fastest Speed 50 | 50 90 50 Average Speed 105 | 86 101 123 Slowest Speed 260 | 90 115 260 Overloaded Moves . | . . . Propulsion Burnouts . | . . . Robots Hopped . | . . . Potential Cave-ins 1 | . 1 . Cave-ins Triggered 1 | . 1 . Exploration Rate (%) 19 | 4 33 21 Regions Visited 2 Branch Regions . Pre-discovered Areas . | . . . Known Exits Taken . | . . . Unknown Exits Taken 2 | 1 1 . Scrap Searched . | . . . Spaces Dug 5 | . 5 . Terrain Destroyed 84 | . 6 78 Melee . | . . . Projectile 6 | . 6 . AOE 78 | . . 78 Terrain Rammed . | . . . Walls Destroyed . | . . . Machines Disabled . | . . . Actions | -11 -10 -9 --------- Run | Yrd Mat Mat Total 743 | 221 370 152 Wait 156 | 151 5 . Move 505 | 58 323 124 Hop . | . . . Pick Up 1 | . 1 . Fast Attach 17 | 9 4 4 Attach . | . . . Detach . | . . . Swap . | . . . Drop 6 | 2 3 1 Fire 53 | 1 33 19 Melee . | . . . Ram 1 | . 1 . Kick 4 | . . 4 Crush . | . . . Escape Stasis . | . . . Rewire . | . . . Trap . | . . . Miscellaneous . | . . . Route ------- -11/Scrapyard -10/Materials -9/Materials History --------- Turn | Location | Event 10 | -11/Scrapyard | Discovered new exit (range 16) 219 | -11/Scrapyard | Entered Materials 315 | -10/Materials | Build established: Mutant 386 | -10/Materials | Crushed by falling debris 469 | -10/Materials | Core integrity fell below 50% 572 | -10/Materials | Discovered new exit (range 5) 654 | -10/Materials | Entered another Materials area 654 | -9/Materials | Evolved 2 slots: Propulsion x1, Weapon x1 869 | -9/Materials | Core integrity fell below 50% 869 | -9/Materials | Core integrity fell below 20% 874 | -9/Materials | Destroyed by Y-45 Defender with Heavy Assault Rifle Last Messages --------------- 00868_ Aluminum Leg destroyed. 00868_ Destroyed Aluminum Leg. 00868_ Fusion Modulator explodes. 00868_ Nuclear Reactor explodes. 00868_ S-10 Pest destroyed. 00868_ Rocket Launcher destroyed. 00868_ Destroyed Rocket Launcher. 00868_ Aluminum Leg destroyed. 00868_ Destroyed Aluminum Leg. 00868_ Y-45 Defender destroyed. 00868_ Nuclear Reactor explodes. 00868_ S-10 Pest destroyed. 00868_ Destroyed Aluminum Leg. 00868_ Destroyed Ion Engine. 00868_ G-34 Mercenary destroyed. 00868_ Destroyed Aluminum Leg. 00868_ G-34 Mercenary destroyed. 00868_ R-06 Scavenger destroyed. 00869_ The unstable cave ceiling collapses. 00870_ K-01 Serf collects debris. Map ----- +----------------------------------------------------+ | ?????????????????????????????????????????????????? | | ?????????????????????????????????????????????????? | | ?????????????????????????????????????????????????? | | ?????????????????????????????????????????????????? | | ?????????????????????????????????????????????????? | | ?????????????????????????????????????????????????? | | ?????????????????????????????????????????????????? | | ?????????????????????????????????????????????????? | | ?????????????????????????????????????????????????? | | ?????????????????????????????????????????????????? | | ?????????????????????????????????????????????????? | | ???????????????????????????? ???????????????????? | | ??????????????????????????? #??????????????????? | | ??????????????????????????? #?????????????? | | ??????????????????????????? # ??????????? | | ??????????????????????????# # ??? ?????# | | ??????????????????????????# k# ""? #??## | | ?????????????????????###### + """ +??? | | ????????????????????? # """ g#???? | | ?????????????????????? # ##??? | | ?????????????????????? # # #???? | | ???????????????????????#;;;;;;; ##???# # | | ??????????????########## = =% #???# # | | ??????????????# ; ###### # | | ??????????????? """ ; ![ # | | ??????????????? """ ; @ # | | ??????????????# """ ; [[ | | ??????????????# ; # % | | ??????????????#!! # [ % | | ??????????????#![ ! # | | ??????????????#! ?# | | ??????????????# ??##;;;;; ##### % | | ??????????????#####+????### #??# % | | ?????????????????????????# # ##??# | | ?????????????????????????###### #???# | | ??????????????????????????????### ###???# | | ????????????????????????????????#######?????# | | ????????????????????????????????????????????# % | | ????????????????????????????????????????????# | | ????????????????????????????????????????????# %[ | | ????????????????????????????????????????????# * | | ???????????????????????????????????????????## | | ???????????????????????????????????????????#T "" | | ???????????????????????????????????????????## """ | | ??????????????????????????????????????????### """ | | ??????????????????????????????????????????#"" """ | | ??????????????????????????????????????????#"T "" | | ??????????????????????????????????????????#"" | | ??????????????????????????????????????????### | | ????????????????????????????????????????????# | +----------------------------------------------------+ Best States ------------- Heat Dissipation 28 Energy Generation 10 Energy Capacity 250 Matter Stores 300 Matter Capacity 300 Sight Range 16 Terrain Scan Range 16 Terrain Scan Density 10 Armor Coverage 450 Evasion (%) 55 Item Schematics ----------------- None Robot Schematics ------------------ None Fabricated ------------ Nothing Repaired ---------- Nothing Studied --------- None Alien Tech Used ----------------- None Achievements -------------- None Challenges ------------ None Game ------ Seed GuidanceShrapnelInterrupter Manual? 0 Play Time 00:12:19 Cumulative 11.4 hours Start 2026.01.14 @ 18:26:11 End 2026.01.14 @ 18:38:39 Sessions 1 Manual Loads 0 Difficulty Rogue Special Mode None Game No. 35 Rogue 35 Adventurer 0 Explorer 0 Win Type - Total 0 Types 0/0/0/0/0/0/0/0/0/0 Lore% 4 Gallery% 16 Achievement% 12 Wizard Run 0 Options --------- Layout 1 ASCII 0 Keyboard 1 Movement Vi Keybinds 0 Fullscreen 1 Font 24/Smallcaps Map View 50x35 Zoom Use 0% Tactical HUD 1 Map Filters NONE Filters NONE Steam 1 RUN: 09cf279d-a908-42c1-82df-c337fd10466c